bitfinex/quotes_ETHUSD_20250425
["timestamp","ask_amount","ask_price","bid_price","bid_amount"]
[1745582411273,1.26242165,1792.1,1791.2,0.8215]
[1745582411452,5.001,1792.3,1791.4,5.58207908]
[1745582411453,14.14577481,1792.3,1791.4,5.58207908]
[1745582411765,8.56621837,1792.3,1791.5,3.0]
[1745582411937,14.14581496,1792.3,1791.5,3.0]
[1745582412265,14.14576517,1792.3,1791.5,3.0]
[1745582412467,1.41457652,1792.2,1791.5,8.58186643]
[1745582412666,5.58052718,1792.0,1791.4,5.8705]
[1745582412871,1.41457652,1792.2,1791.4,5.8705]
[1745582413054,5.95847001,1792.1,1791.7,0.7831]
[1745582413261,5.58071852,1791.9,1791.4,0.7831]
[1745582413468,5.95847001,1791.9,1791.4,0.7831]
[1745582413970,15.10452591,1791.9,1791.4,0.7831]
[1745582414185,5.95847001,1791.9,1791.4,3.7831]
[1745582414380,5.57942894,1792.3,1791.7,0.7982]
[1745582414888,6.36404721,1792.4,1791.7,6.37922074]
[1745582415041,6.36404721,1792.4,1791.7,9.37934333]
[1745582415236,7.00045193,1792.4,1791.7,5.79908228]
[1745582415476,0.4055772,1792.4,1791.9,0.7982]
[1745582416451,5.9848683,1792.4,1791.9,0.7982]
[1745582416765,0.4055772,1792.4,1791.7,0.8293]
[1745582417011,5.98470544,1792.4,1791.7,0.8293]
[1745582417283,3.56521837,1792.3,1791.7,0.8293]
[1745582417452,0.35652184,1792.2,1791.7,0.8293]
[1745582417838,0.12103288,1792.1,1791.7,0.8293]
[1745582418071,0.4055772,1792.4,1791.7,0.8293]
[1745582418272,0.12112587,1792.0,1791.7,0.8293]
[1745582418439,0.4055772,1792.4,1791.8,5.58085487]
[1745582418643,0.12271771,1792.3,1792.0,0.7897]
[1745582418883,0.4055772,1792.4,1792.0,0.7897]
[1745582419052,0.12375791,1792.2,1792.0,6.36991737]
[1745582419249,0.4055772,1792.4,1792.1,5.58004575]
[1745582419462,0.12497316,1792.3,1792.2,0.55800458]
[1745582419635,0.4055772,1792.4,1792.2,0.55800458]
[1745582419840,0.12280289,1792.3,1792.1,5.58001413]
[1745582420043,0.4055772,1792.4,1792.1,5.58001413]
[1745582420383,0.4055772,1792.4,1792.3,6.41112308]
[1745582421154,0.4055772,1792.4,1792.3,0.8317]
[1745582421559,0.4055772,1792.4,1792.3,5.8787]
[1745582421761,0.4055772,1792.4,1792.3,0.8317]
[1745582422350,0.4055772,1792.4,1792.0,6.0687]
[1745582422746,0.4055772,1792.4,1792.1,0.7996]
[1745582422970,0.4055772,1792.4,1792.1,6.37945264]
[1745582423280,0.4055772,1792.4,1792.1,0.7996]
[1745582423484,0.4055772,1792.4,1792.2,5.26]
[1745582424086,0.4055772,1792.4,1792.3,0.7599]
[1745582424392,0.4055772,1792.4,1792.3,6.94131308]
[1745582424621,0.4055772,1792.4,1792.3,6.18141308]
[1745582424791,0.4055772,1792.4,1792.3,6.99251308]
[1745582424994,0.4055772,1792.4,1792.3,9.99251308]
[1745582425383,0.005,1792.8,1792.6,5.57829964]
[1745582425717,0.005,1792.8,1792.7,6.63552996]
[1745582426412,0.005,1792.8,1792.7,6.0777]
[1745582426778,0.005,1792.8,1792.3,0.60199]
[1745582426990,0.005,1792.8,1792.0,7.30073226]
[1745582426991,0.005,1792.8,1792.4,0.7727]
[1745582427213,0.005,1792.8,1792.4,6.0307]
[1745582427826,0.005,1792.8,1792.5,6.37804157]
[1745582428180,0.005,1792.8,1792.5,0.7994]
[1745582428588,0.005,1792.8,1792.4,5.258]
[1745582428839,5.57828941,1792.7,1792.2,5.258]
[1745582429113,0.4054,1792.7,1792.2,5.258]
[1745582429423,5.98377637,1792.7,1792.2,5.258]
[1745582429914,0.4054,1792.7,1792.2,5.258]
[1745582430118,5.57879381,1792.6,1792.2,5.258]
[1745582430416,6.4422768,1792.7,1792.2,5.258]
[1745582430808,0.86389253,1792.7,1792.2,5.258]
[1745582431117,5.57869296,1792.6,1792.2,5.258]
[1745582431416,0.5578693,1792.5,1792.2,5.258]
[1745582431581,0.86389253,1792.7,1792.2,5.258]
[1745582431984,0.4054,1792.7,1792.3,0.8145]
[1745582432222,0.4054,1792.7,1792.2,5.258]
[1745582432622,0.61430693,1792.8,1792.2,5.258]
[1745582432951,0.61430693,1792.8,1792.2,10.83756749]
[1745582432952,0.005,1792.8,1792.2,10.83756749]
[1745582433153,0.005,1792.8,1792.4,0.7933]
[1745582433356,0.005,1792.8,1792.0,5.5802304]
[1745582433357,5.58302062,1792.8,1792.1,5.258]
[1745582433561,0.55830206,1792.7,1792.1,6.42116554]
[1745582433853,0.55830206,1792.7,1792.2,0.823]
[1745582435145,6.13651031,1792.7,1792.2,0.823]
[1745582435346,6.54191031,1792.7,1792.2,0.823]
[1745582435541,6.54191031,1792.7,1792.1,5.258]
[1745582435744,5.57882373,1792.5,1792.1,5.258]
[1745582435962,5.57882373,1792.5,1791.5,16.749]
[1745582435963,3.56521837,1792.2,1791.7,0.8175]
[1745582436162,3.56521837,1792.0,1791.5,0.8175]
[1745582436473,5.58085737,1791.9,1791.3,5.258]
[1745582436632,0.55808574,1791.8,1791.3,5.258]
[1745582436974,11.5391473,1791.9,1791.3,5.258]
[1745582437161,11.53930736,1791.9,1791.3,5.258]
[1745582437476,0.4054,1791.7,1791.3,5.258]
[1745582437775,5.98673132,1791.7,1791.3,5.258]
[1745582438280,0.4054,1791.9,1791.3,5.258]
[1745582438433,0.4054,1792.4,1791.8,6.33956783]
[1745582438635,5.95847001,1792.5,1791.9,5.258]
[1745582438874,11.53751196,1792.5,1791.9,5.258]
[1745582439037,5.95847001,1792.5,1791.9,5.258]
[1745582439243,5.95847001,1792.7,1792.1,0.771]
[1745582439680,5.95847001,1792.7,1792.1,6.3510264]
[1745582439978,0.005,1792.8,1792.2,6.35276651]
[1745582440135,0.005,1792.8,1792.3,5.258]
[1745582440336,5.58310318,1792.8,1792.3,5.258]
[1745582440535,6.13652862,1792.7,1792.3,5.258]
[1745582440739,5.57923044,1792.4,1792.0,0.7732]
[1745582441078,5.57922883,1792.4,1791.9,5.258]
[1745582441277,5.57912499,1792.4,1791.9,5.258]
[1745582441574,5.95847001,1792.5,1791.9,5.258]
[1745582441745,7.11218475,1792.5,1791.9,5.86112]
[1745582442277,5.5791157,1792.4,1791.9,5.86112]
[1745582442460,12.6911755,1792.5,1791.9,5.258]
[1745582442981,12.69120062,1792.5,1791.9,5.258]
[1745582443174,11.15854623,1792.4,1791.9,5.258]
[1745582443479,5.98530644,1792.2,1791.6,6.0213]
[1745582443687,5.58039142,1792.0,1791.6,6.0213]
[1745582443879,5.95847001,1792.0,1791.6,5.259]
[1745582444078,5.58100679,1791.8,1791.6,5.259]
[1745582444284,5.95847001,1792.0,1791.6,5.259]
[1745582444488,6.17668349,1791.9,1791.6,5.259]
[1745582444643,5.95847001,1792.0,1791.6,5.259]
[1745582444844,5.95847001,1792.0,1791.7,0.7707]
[1745582445089,0.4054,1792.4,1791.7,0.7707]
[1745582445279,0.4054,1792.4,1791.7,6.35183417]
[1745582445481,0.4054,1792.4,1791.8,0.63518342]
[1745582445786,0.4054,1792.4,1791.7,0.7707]
[1745582446138,0.4054,1792.4,1791.7,6.35194607]
[1745582446356,0.4054,1792.4,1791.7,6.3519852]
[1745582446640,0.4054,1792.4,1791.7,0.7707]
[1745582446876,5.98453936,1792.4,1791.7,0.7707]
[1745582447116,5.57994355,1792.2,1791.7,0.7707]
[1745582447384,6.17800536,1792.3,1791.3,6.0759]
[1745582447385,5.58087943,1791.9,1791.3,6.0759]
[1745582447696,5.58107703,1791.8,1791.3,6.0759]
[1745582447994,3.74780614,1792.0,1791.3,6.0759]
[1745582448289,5.58100609,1791.8,1791.3,6.0759]
[1745582448490,0.37478061,1791.9,1791.3,6.0759]
[1745582448891,5.58115505,1791.8,1791.3,6.0759]
[1745582449752,0.37478061,1791.9,1791.3,6.0759]
[1745582450656,5.98560725,1792.1,1791.3,11.65842177]
[1745582450886,5.58038746,1792.0,1791.3,6.0759]
[1745582451089,5.5808224,1791.9,1791.3,6.0759]
[1745582451406,5.58219467,1791.5,1791.1,0.8027]
[1745582451608,5.58194021,1791.5,1791.1,0.8027]
[1745582451798,1.71222092,1791.5,1791.1,0.8027]
[1745582451995,5.98686733,1791.7,1791.1,0.8027]
[1745582452302,5.98681178,1791.7,1791.1,0.8027]
[1745582452467,5.5817541,1791.6,1791.1,0.8027]
[1745582452666,0.55817541,1791.5,1791.1,0.8027]
[1745582452881,6.14015446,1791.5,1791.1,0.8027]
[1745582453924,0.55817541,1791.5,1791.1,0.8027]
[1745582454061,5.98690548,1791.7,1791.1,0.8027]
[1745582454268,5.58163304,1791.6,1791.1,0.8027]
[1745582454466,5.58191845,1791.5,1791.1,0.8027]
[1745582455096,5.58297142,1791.2,1790.8,0.7818]
[1745582455406,5.98839807,1791.2,1790.8,0.7818]
[1745582455566,6.58723788,1791.2,1790.8,0.7818]
[1745582455902,1.00423981,1791.2,1790.8,0.7818]
[1745582456092,6.58723689,1791.2,1790.8,0.7818]
[1745582456299,1.00423981,1791.2,1790.8,0.7818]
[1745582456499,0.59883981,1791.2,1790.8,0.7818]
[1745582456816,5.58205228,1791.5,1790.8,0.7818]
[1745582457306,5.58223245,1791.4,1790.8,0.7818]
[1745582457465,5.58269174,1791.3,1790.8,0.7818]
[1745582457668,5.58258513,1791.3,1790.8,0.7818]
[1745582457879,5.58286876,1791.2,1790.8,0.7818]
[1745582458082,6.14084364,1791.3,1790.8,0.7818]
[1745582458582,6.14080232,1791.3,1790.8,0.7818]
[1745582458928,5.58290431,1791.2,1790.8,0.7818]
[1745582459228,0.55825851,1791.3,1790.8,0.7818]
[1745582459517,5.58326848,1791.1,1790.6,6.1635]
[1745582459896,0.4054,1791.2,1790.6,0.7965]
[1745582460080,5.58389661,1790.9,1790.6,0.7965]
[1745582460466,5.58367034,1791.0,1790.6,0.7965]
[1745582460666,6.70036649,1791.0,1790.6,0.7965]
[1745582461396,5.58392617,1790.9,1790.6,0.7965]
[1745582461583,5.58392617,1790.9,1790.4,0.8314]
[1745582461966,6.70024813,1791.0,1790.4,0.8314]
[1745582462379,3.96288989,1791.2,1790.4,6.41672025]
[1745582462380,0.4054,1791.2,1790.4,6.41672025]
[1745582462694,8.58285067,1791.2,1790.5,0.8314]
[1745582462910,11.58273745,1791.3,1790.5,0.8314]
[1745582463071,6.0,1791.3,1790.5,0.8314]
[1745582463277,3.0,1791.2,1790.5,0.8314]
[1745582463473,15.84619694,1791.1,1790.5,0.8314]
[1745582463815,11.88318301,1791.1,1790.5,0.8314]
[1745582464583,6.3,1791.1,1790.5,0.8314]
[1745582464790,5.58408762,1790.9,1790.5,0.8314]
[1745582464985,11.5835898,1791.0,1790.5,0.8314]
[1745582465272,8.01160945,1791.0,1790.5,0.8314]
[1745582466006,5.58380462,1790.9,1790.5,0.8314]
[1745582466207,5.5841207,1790.8,1790.5,0.8314]
[1745582466395,5.5851699,1790.5,1790.3,0.8247]
[1745582466600,5.5851699,1790.5,1790.1,6.2937]
[1745582466775,6.14403876,1790.4,1790.1,6.2937]
[1745582467520,0.55851699,1790.4,1790.1,6.2937]
[1745582467679,5.58503679,1790.5,1790.1,6.2937]
[1745582468009,5.58554774,1790.4,1790.1,5.469]
[1745582468212,9.14270121,1790.5,1790.1,5.469]
[1745582468415,3.55748989,1790.5,1790.1,5.469]
[1745582468579,5.94111606,1790.4,1790.1,5.469]
[1745582468977,0.35574899,1790.4,1790.1,5.469]
[1745582469314,0.4054,1791.3,1790.5,0.7862]
[1745582469521,0.4054,1791.3,1790.6,0.7862]
[1745582469809,6.0,1791.4,1790.6,0.7862]
[1745582469974,5.58239628,1791.4,1790.6,0.7862]
[1745582470174,5.58285405,1791.2,1790.6,0.7862]
[1745582470813,3.55748989,1791.1,1790.6,0.7862]
[1745582471012,5.58347292,1791.0,1790.6,0.7862]
[1745582471217,5.98872922,1791.1,1790.6,0.7862]
[1745582471514,3.0,1791.0,1790.2,0.8055]
[1745582471678,5.58539511,1790.4,1790.2,0.8055]
[1745582471876,6.0,1790.6,1790.1,0.1]
[1745582472104,5.58514221,1790.5,1790.1,0.1]
[1745582472477,5.58503211,1790.5,1790.1,0.1]
[1745582473033,5.58546825,1790.4,1790.1,0.1]
[1745582473177,5.58578519,1790.3,1790.1,0.1]
[1745582473388,5.58596804,1790.2,1790.1,0.1]
[1745582473791,9.14404971,1790.4,1790.1,0.1]
[1745582474208,5.58566002,1790.3,1790.1,0.1]
[1745582474422,5.5858862,1790.3,1790.1,0.1]
[1745582474626,5.58596804,1790.2,1790.1,0.1]
[1745582475499,11.58596804,1790.2,1790.1,0.1]
[1745582475705,14.99136804,1790.2,1790.1,0.1]
[1745582476299,18.74471829,1790.2,1790.1,0.1]
[1745582476942,8.99168009,1790.1,1790.0,435.5558036]
[1745582477238,16.67875336,1790.1,1790.0,435.5558036]
[1745582477845,5.58868907,1789.4,1789.2,0.8291]
[1745582478149,3.0,1789.6,1789.2,0.8291]
[1745582478831,3.0,1789.6,1789.2,0.4291]
[1745582479005,3.75335025,1789.4,1789.1,0.1]
[1745582480209,0.805,1789.2,1789.1,0.1]
[1745582480408,15.834644,1789.2,1789.1,0.1]
[1745582480620,15.98416,1789.2,1789.1,0.1]
[1745582480823,13.777909,1789.2,1789.1,0.1]
[1745582481035,14.33645582,1789.2,1789.1,0.1]
[1745582481255,10.72287682,1789.2,1789.1,0.1]
[1745582481405,23.06370882,1789.2,1789.1,0.1]
[1745582481607,23.06370882,1789.2,1788.1,5.371]
[1745582481608,3.55,1789.1,1788.1,5.371]
[1745582481934,3.55,1789.1,1788.2,0.8231]
[1745582481935,3.0,1788.8,1788.2,0.8231]
[1745582482174,3.7522,1788.8,1788.2,0.8231]
[1745582482811,3.0,1788.5,1787.9,0.801]
[1745582483729,3.0,1788.6,1787.9,6.39402437]
[1745582484312,6.0,1788.7,1788.0,0.7826]
[1745582484631,7.20892,1788.7,1788.0,0.7826]
[1745582484945,3.75335025,1788.6,1788.0,0.7826]
[1745582485312,6.75335025,1788.6,1788.0,0.7826]
[1745582486548,6.0892,1788.8,1788.0,6.3752445]
[1745582486753,5.337,1788.8,1788.1,0.8034]
[1745582486912,5.337,1788.8,1788.1,6.39579788]
[1745582487114,5.337,1788.8,1788.2,0.63957979]
[1745582487327,5.337,1788.8,1788.1,0.8034]
[1745582487932,5.337,1788.8,1788.1,6.39590178]
[1745582488128,0.355,1789.0,1788.3,0.7684]
[1745582488325,6.355,1789.0,1788.3,0.7684]
[1745582489578,0.355,1789.0,1788.3,5.59167724]
[1745582489734,9.0,1789.1,1788.4,0.55916772]
[1745582489934,9.0,1789.1,1788.5,0.8274]
[1745582490935,9.0,1789.1,1787.7,5.59361906]
[1745582490936,0.55854682,1789.2,1788.7,0.8137]
[1745582491270,10.98257172,1789.5,1788.8,0.8137]
[1745582491580,9.75335025,1789.5,1788.8,0.8137]
[1745582491783,11.26248528,1789.5,1788.8,0.8137]
[1745582492252,0.7677,1789.4,1788.8,0.8137]
[1745582492419,3.7677,1789.4,1788.8,0.8137]
[1745582493416,3.75335025,1789.2,1788.8,0.8137]
[1745582493622,3.75335025,1789.2,1788.7,5.338]
[1745582493927,3.0,1789.0,1788.6,0.816]
[1745582494217,9.75335025,1788.9,1788.2,0.7959]
[1745582494420,3.0,1788.7,1788.2,0.7959]
[1745582494743,6.0,1788.8,1788.2,0.7959]
[1745582495421,6.0,1788.8,1788.3,0.8163]
[1745582495622,6.0,1788.8,1788.3,7.04899256]
[1745582495921,6.0,1788.8,1788.4,0.8088]
[1745582498007,6.0,1789.0,1788.4,0.8088]
[1745582498504,3.75335025,1788.9,1788.4,0.8088]
[1745582498700,3.75335025,1788.9,1788.0,6.161]
[1745582498701,0.8054,1788.8,1788.0,6.161]
[1745582498906,0.8054,1788.8,1788.0,7.33640582]
[1745582499104,0.8054,1788.8,1788.0,6.161]
[1745582499310,3.0,1788.5,1788.0,6.161]
[1745582499602,6.7913,1788.4,1788.0,5.339]
[1745582499827,0.67913,1788.3,1788.0,5.339]
[1745582500043,4.43248025,1788.3,1788.0,5.339]
[1745582500187,4.43248025,1788.3,1787.8,0.7932]
[1745582500597,6.0,1788.2,1787.8,0.7932]
[1745582502810,6.0,1788.2,1787.6,6.1412]
[1745582502996,0.6,1788.1,1787.6,0.8022]
[1745582503196,6.0,1788.0,1787.6,0.8022]
[1745582503421,6.7621,1788.0,1787.6,0.8022]
[1745582503802,6.0,1788.0,1787.6,0.8022]
[1745582504631,6.0,1788.0,1787.6,6.39628111]
[1745582504789,6.0,1788.0,1787.7,0.63962811]
[1745582504992,6.0,1788.0,1787.6,0.8022]
[1745582506907,3.0,1788.2,1787.6,0.8022]
[1745582506908,9.0,1788.2,1787.6,0.8022]
[1745582507566,3.0,1787.9,1787.4,0.7997]
[1745582507859,9.0,1787.9,1787.4,0.7997]
[1745582508039,6.0,1787.9,1787.4,0.7997]
[1745582510448,6.0,1787.9,1787.4,6.39440325]
[1745582510713,6.0,1787.9,1787.4,0.7997]
[1745582512763,9.0,1788.0,1787.4,0.7997]
[1745582513943,6.0,1787.9,1787.4,0.7997]
[1745582514149,0.6,1787.8,1787.4,0.7997]
[1745582515625,6.6,1787.8,1787.4,0.7997]
[1745582516456,6.0,1787.8,1787.4,0.7997]
[1745582518140,1.149,1787.7,1787.2,10.81320793]
[1745582518468,1.149,1787.7,1787.2,5.218]
[1745582518889,1.149,1787.9,1787.2,5.218]
[1745582520387,1.149,1787.9,1787.3,1.2029]
[1745582520550,1.149,1787.9,1787.3,6.79792138]
[1745582520751,1.92081382,1787.9,1787.3,1.2029]
[1745582521272,0.77181382,1787.9,1787.3,1.2029]
[1745582521645,1.2442,1788.1,1787.5,1.238]
[1745582522487,3.0,1788.2,1787.5,6.8321971]
[1745582522672,1.84943,1788.3,1787.6,6.3548]
[1745582523183,4.84943,1788.3,1787.6,6.3548]
[1745582523547,4.84943,1788.3,1787.6,11.94876077]
[1745582523749,0.484943,1788.2,1787.6,8.10909625]
[1745582525089,9.56913822,1788.2,1787.6,6.3548]
[1745582525246,3.56913822,1788.0,1787.6,6.3548]
[1745582525647,4.82213822,1788.0,1787.6,6.3548]
[1745582525899,3.56913822,1787.8,1787.3,6.4495]
[1745582526121,6.35691382,1787.7,1787.3,6.4495]
[1745582527176,6.0,1787.7,1787.3,6.4495]
[1745582528391,6.0,1787.7,1787.3,1.2315]
[1745582530189,9.56913822,1787.8,1787.3,1.2315]
[1745582530526,9.56913822,1787.8,1787.1,0.4055772]
[1745582530527,3.0,1787.3,1787.1,0.4055772]
[1745582530727,3.86913822,1787.2,1787.1,0.4055772]
[1745582531522,0.2347,1787.2,1787.1,0.4055772]
[1745582531925,6.0,1787.3,1787.1,0.4055772]
[1745582532128,5.59246654,1788.2,1787.1,0.4055772]
[1745582532129,6.0,1787.7,1787.2,1.2451]
[1745582532287,6.0,1787.8,1787.2,1.2451]
[1745582532487,9.56913822,1787.8,1787.2,1.2451]
[1745582532727,1.2503,1787.9,1787.3,5.59493632]
[1745582532903,1.2503,1787.9,1787.2,5.59520456]
[1745582533105,1.2503,1788.1,1787.5,1.2451]
[1745582533291,7.2503,1788.1,1787.5,1.2451]
[1745582533634,0.72503,1788.0,1787.5,6.4641]
[1745582533836,6.0,1788.1,1787.6,6.80677423]
[1745582534140,6.0,1788.1,1787.6,1.2127]
[1745582535713,1.2507,1787.9,1787.4,5.219]
[1745582536027,1.2507,1787.9,1787.3,5.219]
[1745582537417,0.80168245,1787.9,1787.4,1.1843]
[1745582537616,7.197,1788.1,1787.4,1.1843]
[1745582537920,7.197,1788.1,1787.4,5.59470628]
[1745582537921,6.0,1788.1,1787.4,5.59470628]
[1745582538122,6.0,1788.1,1787.5,1.1843]
[1745582538322,1.87613,1788.3,1787.7,1.1725]
[1745582538522,4.87613,1788.3,1787.7,6.3915]
[1745582538740,0.487613,1788.2,1787.7,6.3915]
[1745582538939,6.487613,1788.2,1787.7,11.98506132]
[1745582539145,6.0,1788.2,1787.7,6.3915]
[1745582540054,6.0,1788.2,1787.7,11.9852615]
[1745582540448,6.0,1788.2,1787.7,6.3915]
[1745582540647,6.0,1788.2,1787.7,13.74315432]
[1745582541165,6.0,1788.2,1787.8,5.59326169]
[1745582541367,6.0,1788.2,1787.9,1.2472]
[1745582541669,6.0,1788.4,1787.9,1.2472]
[1745582542174,6.0,1788.6,1788.1,1.1712]
[1745582542342,6.37661245,1788.7,1788.1,11.98168447]
[1745582542546,6.0,1788.7,1788.1,11.98152637]
[1745582542741,6.0,1788.7,1788.1,11.98151794]
[1745582543043,6.0,1788.7,1788.2,6.74158474]
[1745582544077,6.0,1788.7,1788.2,1.1495]
[1745582544280,6.0,1788.7,1788.2,2.34548179]
[1745582545147,6.0,1788.7,1788.2,1.1495]
[1745582545749,6.0,1788.7,1787.8,1.1389]
[1745582545750,4.94062455,1788.6,1787.8,1.1389]
[1745582545949,9.0,1788.5,1787.9,5.144]
[1745582546149,3.0,1788.3,1787.8,1.1389]
[1745582546355,3.0,1788.3,1787.9,5.144]
[1745582547479,6.0,1788.4,1788.0,1.1573]
[1745582547981,6.0,1788.4,1788.0,6.75012707]
[1745582548142,6.0,1788.4,1788.0,8.49883146]
[1745582548342,7.2003,1788.7,1788.3,5.59188696]
[1745582548582,6.0,1788.7,1788.4,1.1537]
[1745582548973,0.37533503,1789.1,1788.4,6.74528598]
[1745582548974,6.0,1789.0,1788.4,6.74528598]
[1745582549172,3.0,1788.9,1788.4,6.74528598]
[1745582549367,3.0,1788.9,1788.4,1.1537]
[1745582549749,3.0,1788.9,1788.4,6.74524228]
[1745582550270,3.0,1788.9,1788.4,1.1537]
[1745582550846,9.0,1788.9,1788.4,1.1537]
[1745582551047,9.97601535,1788.9,1788.4,1.1537]
[1745582551247,9.0,1788.9,1788.5,5.59127336]
[1745582551475,9.0,1788.9,1788.6,1.1332]
[1745582554550,3.0,1789.2,1788.6,1.1332]
[1745582554867,3.0,1789.2,1788.7,5.142]
[1745582555478,3.0,1789.2,1788.6,1.1332]
[1745582555790,0.3,1789.1,1788.7,5.142]
[1745582556856,3.0,1789.2,1788.8,6.84517744]
[1745582557051,7.2308,1789.5,1788.8,1.255]
[1745582557250,3.0,1789.4,1788.9,1.255]
[1745582559290,4.2156,1789.4,1788.9,1.255]
[1745582559592,4.2156,1789.4,1788.9,6.396]
[1745582559922,0.42156,1789.3,1788.9,6.396]
[1745582562085,4.2034,1789.2,1788.9,5.141]
[1745582562458,3.0,1789.0,1788.9,5.141]
[1745582563733,3.0,1789.0,1788.8,1.2548]
[1745582563902,3.0,1789.0,1788.4,1.1372]
[1745582564227,3.86415057,1788.9,1788.5,5.141]
[1745582564729,0.3,1788.9,1788.5,5.141]
[1745582566893,3.0,1788.8,1788.4,1.1372]
[1745582567195,3.0,1788.6,1788.4,1.1372]
[1745582567420,3.0,1788.4,1788.3,5.141]
[1745582567933,3.0,1788.4,1788.0,1.2133]
[1745582568092,9.0,1788.4,1788.1,5.141]
[1745582568293,10.1616,1788.4,1788.1,5.141]
[1745582568493,10.1616,1788.4,1788.0,6.3543]
[1745582568689,11.56417506,1788.4,1788.0,6.3543]
[1745582570439,9.0,1788.4,1788.0,6.3543]
[1745582572646,9.0,1788.4,1788.0,11.94702147]
[1745582572802,9.0,1788.4,1788.0,6.3543]
[1745582573145,6.0,1788.4,1788.2,6.77221519]
[1745582573302,6.0,1788.4,1788.3,0.67722152]
[1745582573654,6.0,1788.4,1788.2,1.1801]
[1745582574900,3.0,1788.6,1788.3,5.142]
[1745582575199,3.0,1788.6,1788.2,5.142]
[1745582576858,6.0,1788.7,1788.3,1.1803]
[1745582577009,4.1574,1789.0,1788.3,6.7720037]
[1745582577214,4.1574,1789.0,1788.4,0.67720037]
[1745582577215,5.57181047,1789.0,1788.4,0.67720037]
[1745582578022,5.57181047,1789.0,1788.5,1.2006]
[1745582578330,5.57181047,1789.0,1788.6,5.067]
[1745582578529,6.0,1789.1,1788.6,5.067]
[1745582579151,3.0,1789.1,1788.6,5.067]
[1745582579367,7.1726,1789.2,1788.6,5.067]
[1745582579534,7.1726,1789.2,1788.6,10.65780043]
[1745582579718,3.0,1789.1,1788.6,5.067]
[1745582579918,3.0,1789.1,1788.7,5.5905017]
[1745582580119,1.1443,1789.4,1788.8,1.231]
[1745582580319,4.70845057,1789.4,1788.8,1.231]
[1745582580869,4.70845057,1789.4,1788.6,12.40284597]
[1745582580870,3.0,1789.1,1788.6,13.63380546]
[1745582581033,3.0,1789.1,1788.6,8.04297069]
[1745582581219,3.65641506,1789.1,1788.6,6.298]
[1745582581567,3.0,1788.9,1788.7,5.066]
[1745582581747,3.0,1788.9,1788.6,5.066]
[1745582584858,1.2467,1788.8,1788.5,5.066]
[1745582585266,3.0,1788.7,1788.2,1.1634]
[1745582585430,3.0,1788.7,1788.4,5.066]
[1745582585431,10.38108506,1788.7,1788.4,5.066]
[1745582585838,10.38108506,1788.7,1788.3,5.066]
[1745582586365,10.38108506,1788.7,1788.2,1.1634]
[1745582586535,10.38108506,1788.7,1788.3,5.066]
[1745582586866,0.80726327,1788.6,1788.3,5.066]
[1745582587853,9.0,1788.7,1788.3,6.2951]
[1745582588231,9.0,1788.7,1788.4,5.59145836]
[1745582588561,6.0,1788.7,1788.4,5.59145836]
[1745582588715,6.0,1788.7,1788.3,6.82077464]
[1745582588919,9.0,1788.9,1788.4,5.066]
[1745582589151,10.37940506,1788.9,1788.4,5.066]
[1745582589532,1.1562,1788.7,1788.4,5.066]
[1745582590048,4.1562,1788.7,1788.4,5.066]
[1745582590763,4.1562,1788.7,1788.1,1.236]
[1745582590966,6.0,1788.6,1788.1,1.236]
[1745582591128,7.01562,1788.6,1788.2,5.066]
[1745582591325,7.01562,1788.6,1787.9,23.60309972]
[1745582591326,3.0,1788.4,1787.9,18.01]
[1745582591541,4.2345,1788.4,1788.1,5.066]
[1745582593870,3.0,1788.4,1788.1,5.066]
[1745582594440,1.1658,1788.3,1788.1,5.066]
[1745582594667,6.56415057,1788.2,1787.7,1.1603]
[1745582594828,6.56415057,1788.2,1787.1,0.4055772]
[1745582594829,3.0,1787.9,1787.6,5.066]
[1745582595025,3.0,1787.7,1787.5,5.066]
[1745582595230,3.0,1787.7,1787.3,1.1603]
[1745582595231,4.72995057,1787.8,1787.3,1.1603]
[1745582595429,4.72995057,1787.8,1787.4,5.066]
[1745582595430,1.1658,1787.8,1787.4,5.066]
[1745582596381,1.1658,1787.8,1787.4,10.66059531]
[1745582596672,1.1658,1787.8,1787.4,5.066]
[1745582596853,7.1658,1787.8,1787.4,5.066]
[1745582597508,6.0,1787.8,1787.4,5.066]
[1745582597769,6.0,1787.8,1787.4,5.78442975]
[1745582597965,6.0,1787.8,1787.5,5.59424171]
[1745582598564,6.0,1787.8,1787.4,11.3791259]
[1745582598765,6.0,1787.8,1787.4,11.37896958]
[1745582598975,6.0,1787.8,1787.4,0.71842975]
[1745582599265,6.0,1787.8,1787.3,6.75514327]
[1745582599266,6.0,1787.8,1787.5,5.067]
[1745582599471,7.2254,1787.8,1787.5,5.067]
[1745582602598,6.0,1787.8,1787.5,5.067]
[1745582603698,6.0,1787.8,1787.1,0.4055772]
[1745582603699,7.2,1787.7,1787.1,1.5623772]
[1745582603872,7.2,1787.7,1787.4,5.068]
[1745582604072,0.72,1787.6,1787.4,5.068]
[1745582605702,0.72,1787.6,1787.1,1.5623772]
[1745582605861,0.72,1787.6,1787.3,5.068]
[1745582606802,7.2,1787.7,1787.3,5.068]
[1745582607701,6.0,1787.9,1787.1,0.4055772]
[1745582607905,6.0,1787.9,1786.3,1.1963]
[1745582607906,4.1382,1787.1,1786.3,6.2453]
[1745582608075,4.70235057,1787.0,1786.3,6.2453]
[1745582608262,1.1382,1787.0,1786.3,11.84315302]
[1745582608464,1.1382,1787.0,1786.3,11.84331229]